bitfinex/quotes_SOLUSD_20240613
["timestamp","ask_amount","ask_price","bid_price","bid_amount"]
[1718308818486,2.5064,147.62,147.59,0.8490378]
[1718308818784,6.0114,147.61,147.59,0.8490378]
[1718308819300,32.6536,147.6,147.59,0.8490378]
[1718308819497,67.9665,147.6,147.59,0.8490378]
[1718308819884,68.1365,147.6,147.59,0.8490378]
[1718308820083,60.1063,147.6,147.59,0.8490378]
[1718308820308,62.613,147.6,147.59,0.8490378]
[1718308820475,62.953,147.6,147.59,0.8490378]
[1718308821114,62.783,147.6,147.59,0.8490378]
[1718308821303,62.953,147.6,147.59,0.8490378]
[1718308822013,2.5065,147.62,147.59,0.8490378]
[1718308823185,2.5067,147.6,147.59,0.8490378]
[1718308823785,7.5202,147.6,147.59,0.8490378]
[1718308823996,47.8467,147.6,147.59,0.8490378]
[1718308824313,47.5067,147.6,147.59,0.8490378]
[1718308824520,47.6767,147.6,147.59,0.8490378]
[1718308824699,47.5067,147.6,147.59,0.8490378]
[1718308824896,48.0167,147.6,147.59,0.8490378]
[1718308825227,80.64731523,147.6,147.59,0.8490378]
[1718308825389,63.09991523,147.6,147.59,0.8490378]
[1718308825587,58.08641523,147.6,147.59,0.8490378]
[1718308825909,48.0167,147.6,147.59,0.8490378]
[1718308826204,63.09991523,147.6,147.59,0.8490378]
[1718308826615,62.92991523,147.6,147.59,0.8490378]
[1718308826786,52.8602,147.6,147.59,0.8490378]
[1718308827182,45.34,147.6,147.59,0.8490378]
[1718308827408,55.06059024,147.6,147.59,0.8490378]
[1718308827593,57.56729024,147.6,147.59,0.8490378]
[1718308827785,10.06059024,147.6,147.59,0.8490378]
[1718308827990,10.06059024,147.62,147.59,0.8490378]
[1718308828213,12.56689024,147.63,147.59,0.8490378]
[1718308828511,10.06059024,147.63,147.61,2.5065]
[1718308828816,12.56649024,147.65,147.59,3.3558378]
[1718308829017,2.5059,147.65,147.59,3.3558378]
[1718308829317,12.56649024,147.65,147.59,3.3559378]
[1718308829487,2.5061,147.64,147.59,3.3559378]
[1718308829798,2.5061,147.64,147.59,0.8490378]
[1718308830317,10.06059024,147.65,147.59,0.8490378]
[1718308830524,2.5063,147.63,147.59,0.8490378]
[1718308830689,2.5065,147.62,147.59,0.8490378]
[1718308831108,47.5063,147.63,147.59,0.8490378]
[1718308831317,57.56669024,147.64,147.59,0.8490378]
[1718308831495,2.5062,147.63,147.59,0.8490378]
[1718308834820,10.06059024,147.65,147.59,3.3557378]
[1718308834821,2.506,147.65,147.59,3.3557378]
[1718308835426,2.5061,147.64,147.59,3.3557378]
[1718308835722,2.506,147.65,147.59,3.3558378]
[1718308835931,2.506,147.64,147.59,3.3558378]
[1718308836230,35.6579,147.67,147.59,3.3558378]
[1718308836231,53.46059024,147.67,147.59,0.8490378]
[1718308836426,7.5183,147.64,147.59,0.8490378]
[1718308836598,2.5066,147.61,147.59,0.8490378]
[1718308836795,17.5441,147.63,147.59,0.8490378]
[1718308837116,2.5067,147.61,147.59,0.8490378]
[1718308837292,2.5067,147.6,147.59,0.8490378]
[1718308838118,2.5066,147.61,147.59,0.8490378]
[1718308838821,2.5065,147.62,147.59,0.8490378]
[1718308839018,2.5063,147.63,147.59,0.8490378]
[1718308839220,2.5061,147.64,147.59,0.8490378]
[1718308839429,2.5063,147.63,147.59,0.8490378]
[1718308841225,2.5064,147.62,147.59,0.8490378]
[1718308841521,0.4057,147.6,147.59,0.8490378]
[1718308841918,0.4057,147.6,147.59,3.3559378]
[1718308843526,0.4057,147.6,147.59,25.7482378]
[1718308843834,12.56599024,147.69,147.63,2.5062]
[1718308844046,2.5054,147.69,147.64,2.506]
[1718308844339,2.5052,147.7,147.65,2.0057]
[1718308844511,22.58469024,147.72,147.63,5.0124]
[1718308844512,2.5049,147.71,147.66,2.5057]
[1718308844691,2.5049,147.71,147.65,2.5058]
[1718308845102,34.18389024,147.73,147.68,2.5054]
[1718308845103,2.5046,147.73,147.68,2.5054]
[1718308845317,17.57389024,147.74,147.66,18.643]
[1718308845519,2.5049,147.71,147.66,18.643]
[1718308845739,2.5047,147.72,147.67,2.5055]
[1718308846247,2.5047,147.72,147.67,2.5054]
[1718308846424,2.5047,147.72,147.67,2.5055]
[1718308847352,5.0092,147.73,147.66,22.7334]
[1718308847646,5.0102,147.7,147.62,24.3062]
[1718308847820,2.5055,147.68,147.62,24.3062]
[1718308848020,2.5055,147.68,147.63,2.5062]
[1718308848220,2.5054,147.68,147.62,21.7999]
[1718308848438,2.5049,147.71,147.63,12.531]
[1718308848643,12.56529024,147.72,147.66,2.5056]
[1718308848814,2.5047,147.72,147.67,2.5055]
[1718308849254,2.5047,147.72,147.67,2.5054]
[1718308849479,12.56519024,147.73,147.67,2.5054]
[1718308849662,12.56499024,147.74,147.68,2.5053]
[1718308849956,2.5047,147.72,147.67,2.5054]
[1718308850529,2.5046,147.73,147.67,2.5054]
[1718308850747,12.56499024,147.74,147.68,2.5054]
[1718308850966,2.5044,147.74,147.69,2.5052]
[1718308851559,2.5045,147.73,147.68,2.5053]
[1718308851771,10.06059024,147.75,147.68,2.5053]
[1718308851772,2.5044,147.74,147.68,2.5053]
[1718308851938,2.5044,147.74,147.69,2.5052]
[1718308853546,2.5043,147.75,147.67,12.5277]
[1718308853859,2.5041,147.76,147.7,2.505]
[1718308854031,2.5042,147.75,147.7,2.505]
[1718308854652,10.06059024,147.77,147.7,6.0345]
[1718308854962,2.5039,147.77,147.72,2.5046]
[1718308856661,2.5038,147.78,147.73,2.5045]
[1718308856862,2.5038,147.78,147.74,2.5043]
[1718308857172,2.5038,147.78,147.73,2.5044]
[1718308857758,2.5039,147.77,147.72,2.5046]
[1718308858254,2.5036,147.79,147.74,2.5043]
[1718308859441,2.7066,147.79,147.74,2.5043]
[1718308860235,2.5037,147.78,147.73,2.5044]
[1718308860842,2.7066,147.79,147.74,2.5043]
[1718308861183,0.203,147.79,147.75,2.5042]
[1718308862353,0.203,147.79,147.78,2.5037]
[1718308862755,0.203,147.79,147.78,7.5111]
[1718308862941,0.203,147.79,147.78,35.0222]
[1718308863144,0.203,147.79,147.78,45.037]
[1718308863585,0.203,147.79,147.78,45.547]
[1718308864344,2.5022,147.87,147.82,2.503]
[1718308864663,2.5023,147.86,147.81,2.5031]
[1718308864971,43.4,147.89,147.77,6.4354]
[1718308865155,2.5027,147.84,147.79,2.5035]
[1718308865671,2.5027,147.84,147.79,2.5034]
[1718308865849,2.5026,147.85,147.79,2.5034]
[1718308866043,47.5026,147.85,147.79,2.5034]
[1718308866245,2.5029,147.83,147.78,2.5036]
[1718308866644,47.5028,147.84,147.78,2.5036]
[1718308866959,2.5024,147.86,147.8,2.5032]
[1718308867160,2.5024,147.86,147.81,2.5032]
[1718308867371,65.44,147.87,147.77,6.4354]
[1718308867668,5.3448,147.86,147.77,6.4354]
[1718308867863,2.5027,147.84,147.79,2.5034]
[1718308868047,2.5029,147.83,147.77,6.4354]
[1718308868361,50.0051,147.85,147.77,8.9392]
[1718308868567,50.0051,147.85,147.77,6.4354]
[1718308868568,13.0237,147.84,147.77,6.4354]
[1718308868750,2.5032,147.81,147.76,2.504]
[1718308869972,2.5034,147.8,147.75,17.9626]
[1718308870269,45.0,147.83,147.79,2.5034]
[1718308870514,45.0,147.83,147.78,2.5036]
[1718308870770,45.0,147.83,147.79,2.5034]
[1718308870972,2.5027,147.84,147.79,2.5034]
[1718308871682,45.0,147.85,147.81,2.503]
[1718308871994,2.5024,147.86,147.81,2.503]
[1718308872640,2.5022,147.87,147.79,5.007]
[1718308872747,2.5022,147.87,147.82,2.503]
[1718308873143,2.5022,147.87,147.82,2.5029]
[1718308875068,5.0029,147.92,147.81,10.0127]
[1718308875352,2.5017,147.9,147.85,2.5024]
[1718308875781,5.0029,147.92,147.84,2.5026]
[1718308875782,2.5018,147.89,147.84,2.5026]
[1718308877881,47.5017,147.9,147.85,2.5025]
[1718308878388,2.5019,147.89,147.84,2.5026]
[1718308878975,2.5019,147.89,147.82,5.006]
[1718308878976,2.502,147.88,147.81,7.5096]
[1718308879173,2.502,147.88,147.83,2.5028]
[1718308879593,2.5022,147.87,147.82,2.5029]
[1718308879892,0.17,147.88,147.81,12.5159]
[1718308880093,0.34,147.88,147.84,2.5026]
[1718308880304,0.34,147.88,147.82,22.5269]
[1718308880471,0.34,147.88,147.84,2.5026]
[1718308880806,0.34,147.88,147.83,2.5027]
[1718308881298,5.0048,147.86,147.79,6.0931]
[1718308881500,47.8426,147.85,147.79,8.5965]
[1718308881871,0.34,147.85,147.79,6.0931]
[1718308882170,2.5025,147.85,147.79,6.0931]
[1718308882365,2.5025,147.85,147.8,2.5032]
[1718308882570,2.5025,147.85,147.79,8.5965]
[1718308883112,2.5027,147.84,147.79,2.5034]
[1718308883600,2.5028,147.84,147.78,2.5036]
[1718308883901,47.5028,147.84,147.79,2.5034]
[1718308884099,2.5028,147.84,147.79,2.5034]
[1718308884399,2.5026,147.85,147.79,2.5034]
[1718308884590,2.5027,147.84,147.79,2.5034]
[1718308884899,47.8424,147.86,147.81,2.5032]
[1718308885109,0.34,147.85,147.81,2.5032]
[1718308885275,2.8425,147.85,147.8,2.5032]
[1718308885477,0.34,147.85,147.8,2.5032]
[1718308885678,2.5025,147.85,147.8,2.5032]
[1718308885910,2.5025,147.85,147.79,2.5034]
[1718308886075,16.1578,147.85,147.78,2.5036]
[1718308886280,5.0058,147.83,147.75,6.3795]
[1718308886510,2.5032,147.81,147.75,8.8836]
[1718308886683,2.5034,147.8,147.74,2.5043]
[1718308887025,2.5034,147.8,147.71,6.3987]
[1718308887026,2.5038,147.78,147.71,6.3987]
[1718308887212,45.34,147.79,147.72,2.5046]
[1718308887520,47.8436,147.79,147.74,2.5042]
[1718308887827,2.8436,147.79,147.74,2.5042]
[1718308888413,45.17,147.8,147.72,5.0093]
[1718308888414,47.6734,147.8,147.75,2.5042]
[1718308888574,47.6734,147.8,147.68,15.413]
[1718308888575,45.0,147.8,147.76,2.5039]
[1718308889304,47.5033,147.81,147.76,2.5039]
[1718308889472,47.5033,147.81,147.75,2.5041]
[1718308889873,45.0,147.81,147.74,2.5043]
[1718308890091,2.5036,147.79,147.74,2.5043]
[1718308890483,47.5034,147.8,147.74,2.5043]
[1718308890687,47.5034,147.8,147.75,2.5042]
[1718308890899,47.5033,147.81,147.75,2.5042]
[1718308891101,47.5033,147.81,147.76,2.504]
[1718308891299,45.0,147.81,147.76,2.504]
[1718308891708,47.5032,147.81,147.76,2.504]
[1718308892093,47.5032,147.81,147.75,2.5041]
[1718308892419,2.5033,147.8,147.75,2.5041]
[1718308892888,2.5033,147.8,147.74,2.5042]
[1718308893312,2.5033,147.8,147.75,2.5042]
[1718308893695,2.5033,147.8,147.74,2.5042]
[1718308895131,2.5033,147.8,147.75,2.5042]
[1718308895292,57.56958595,147.81,147.76,2.504]
[1718308896102,57.56958595,147.81,147.75,2.5041]
[1718308896300,57.56958595,147.81,147.76,2.504]
[1718308896739,12.56928595,147.82,147.77,2.5038]
[1718308896901,12.56928595,147.82,147.76,2.5039]
[1718308897116,2.5032,147.81,147.76,2.5039]
[1718308897321,2.5035,147.8,147.72,5.0091]
[1718308897496,2.5035,147.8,147.74,2.5042]
[1718308897702,2.5035,147.8,147.75,2.5042]
[1718308898595,47.5033,147.81,147.76,2.504]
[1718308899199,12.56938595,147.82,147.76,2.504]
[1718308899434,10.06628595,147.82,147.77,17.5265]
[1718308899651,22.4255,147.85,147.77,17.5265]
[1718308899652,12.56918595,147.83,147.78,2.5036]
[1718308900845,27.4305,147.85,147.8,2.5032]
[1718308900846,10.06628595,147.84,147.8,2.5032]
[1718308901208,28.72658595,147.85,147.8,2.5032]
[1718308901807,2.5027,147.84,147.79,2.5034]
[1718308902132,28.72658595,147.85,147.8,2.5033]
[1718308902321,18.6603,147.85,147.8,2.5033]
[1718308902636,10.06628595,147.86,147.81,2.503]
[1718308903206,12.56868595,147.86,147.81,2.5031]
[1718308903412,2.5025,147.85,147.8,2.5033]
[1718308903905,10.06628595,147.86,147.79,20.0]
[1718308904107,10.06628595,147.86,147.81,2.5032]
[1718308904423,10.06628595,147.86,147.82,2.503]
[1718308904826,12.56858595,147.86,147.81,2.5031]
[1718308905020,10.06628595,147.86,147.82,2.503]
[1718308905717,12.56848595,147.87,147.82,2.503]
[1718308906464,12.56848595,147.87,147.8,12.5167]
[1718308906465,10.06628595,147.87,147.83,2.5028]
[1718308906623,12.56848595,147.87,147.82,2.5029]
[1718308906823,2.5023,147.86,147.82,2.5029]
[1718308907130,2.5023,147.86,147.81,2.5031]
[1718308909225,12.56858595,147.87,147.82,2.503]
[1718308909563,10.06628595,147.87,147.83,2.5028]
[1718308909726,10.06628595,147.87,147.81,25.0062]
[1718308909727,2.5022,147.87,147.82,2.5029]
[1718308910748,265.66828595,147.88,147.83,2.5028]
[1718308912131,255.602,147.88,147.84,2.5026]
[1718308913231,255.602,147.88,147.83,2.5027]
[1718308913456,255.602,147.88,147.84,2.5027]
[1718308913640,255.602,147.88,147.83,2.5027]
[1718308914330,255.602,147.88,147.81,12.5157]
[1718308914631,255.602,147.88,147.83,2.5027]
[1718308915088,10.06628595,147.89,147.85,5.0048]
[1718308915235,2.5014,147.92,147.86,20.0]
[1718308915445,12.56748595,147.93,147.88,2.5019]
[1718308915685,2.5013,147.92,147.88,2.5019]
[1718308916161,2.5012,147.93,147.88,2.5019]
[1718308917145,2.5013,147.92,147.87,2.502]
[1718308917355,39.01948595,147.94,147.86,2.5022]
[1718308917356,22.57238595,147.93,147.86,2.5022]
[1718308917560,2.5018,147.9,147.85,20.0]
[1718308917765,2.5018,147.9,147.85,22.5024]
[1718308918427,2.5016,147.91,147.86,2.5023]
[1718308919353,2.5016,147.91,147.87,2.5021]
[1718308919750,47.5014,147.92,147.87,2.5021]
[1718308920448,2.6716,147.91,147.86,2.5022]
[1718308920849,0.17,147.91,147.82,11.5791]
[1718308921048,2.502,147.88,147.83,2.5027]
[1718308921259,2.502,147.88,147.8,5.0065]
[1718308921260,16.5767,147.88,147.8,5.0065]
[1718308921450,16.5767,147.88,147.81,2.503]
[1718308921775,2.5023,147.86,147.81,2.5031]
[1718308921968,2.5023,147.86,147.82,2.503]
[1718308922145,47.5023,147.87,147.82,2.503]
[1718308922749,45.0,147.87,147.83,2.5028]
[1718308922951,16.5767,147.88,147.78,6.3785]
[1718308923145,16.5767,147.88,147.86,2.5023]
[1718308923345,16.5767,147.88,147.87,2.5021]
[1718308923543,6.0642,147.9,147.86,2.5022]
[1718308924599,6.0642,147.9,147.87,2.5021]
[1718308924869,8.5659,147.9,147.85,2.5024]
[1718308925183,2.5018,147.89,147.85,2.5024]
[1718308925465,8.5659,147.9,147.85,2.5024]
[1718308925650,2.5018,147.89,147.84,2.5026]
[1718308926059,2.502,147.88,147.83,2.5027]
[1718308926467,47.502,147.88,147.83,2.5027]
[1718308926877,10.05400026,147.91,147.83,10.011]
[1718308927184,47.5016,147.9,147.85,2.5024]
[1718308927590,45.0,147.9,147.84,37.5184]
[1718308927896,45.0,147.91,147.87,2.502]
[1718308928567,47.5015,147.91,147.86,2.5022]
[1718308930523,18.941,147.92,147.87,2.502]
[1718308931369,263.15400026,147.95,147.87,17.5148]
[1718308931583,2.5011,147.94,147.89,2.5017]
[1718308932366,2.5014,147.92,147.87,2.5021]
[1718308933278,47.8412,147.93,147.88,2.5019]
[1718308933482,47.8412,147.93,147.89,2.5018]
[1718308933796,12.55490026,147.95,147.9,2.5016]
[1718308934093,2.5009,147.95,147.9,2.5016]
[1718308934603,2.5009,147.95,147.88,5.004]
[1718308934604,2.501,147.94,147.89,2.5017]
[1718308934982,6.105,147.92,147.87,7.68]
[1718308935181,21.0983,147.9,147.82,7.68]
[1718308935380,4.99922845,147.88,147.83,2.5028]
[1718308935583,2.502,147.88,147.83,7.68]
[1718308935800,7.68,147.89,147.83,10.1828]
[1718308935801,10.1819,147.89,147.83,10.1828]
[1718308935985,7.68,147.88,147.83,2.5028]
[1718308936183,7.68,147.88,147.82,7.68]
[1718308936387,7.68,147.86,147.78,5.0073]
[1718308936626,7.68,147.86,147.81,2.5031]
[1718308936907,2.5021,147.88,147.82,2.503]
[1718308938960,45.34,147.89,147.81,5.0063]
[1718308939081,47.5018,147.89,147.83,2.5027]
[1718308940204,2.502,147.88,147.82,2.5029]
[1718308941110,31.6764,147.92,147.86,2.5023]
[1718308941289,31.6764,147.92,147.86,2.5022]
[1718308941290,2.5013,147.92,147.86,2.5022]
[1718308942890,47.5013,147.92,147.86,2.5022]
[1718308943094,2.5015,147.91,147.85,22.5024]
[1718308943413,2.5016,147.91,147.85,22.5024]
[1718308943600,2.5017,147.9,147.85,2.5024]
[1718308943804,2.5016,147.91,147.85,2.5024]
[1718308944001,47.5016,147.91,147.85,2.5024]
[1718308944323,2.5017,147.9,147.85,2.5024]
[1718308944526,45.0,147.91,147.86,2.5023]
[1718308944817,47.8414,147.92,147.86,2.5023]
[1718308944998,0.34,147.91,147.86,2.5023]
[1718308946009,47.5014,147.92,147.87,2.5021]
[1718308946010,45.0,147.92,147.87,2.5021]
[1718308947224,45.0,147.92,147.88,2.502]
[1718308947737,45.0,147.92,147.87,2.5021]
[1718308948594,16.3365,147.96,147.87,2.5021]
[1718308948595,8.8342,147.96,147.88,12.51]
[1718308948815,2.5007,147.96,147.91,2.5015]
[1718308949042,38.6061,147.98,147.91,2.5015]
[1718308949043,2.5005,147.97,147.91,2.5015]
[1718308949342,21.1031,147.98,147.92,2.5013]
[1718308949343,16.1025,147.98,147.92,2.5013]
[1718308949514,18.6029,147.98,147.92,2.5013]
[1718308949831,2.5005,147.97,147.92,2.5013]
[1718308949999,2.5006,147.96,147.91,2.5014]
[1718308950201,2.5009,147.95,147.9,2.5016]
[1718308950562,45.0,147.96,147.91,2.5015]
[1718308950716,16.1025,147.98,147.91,2.5015]
[1718308950717,45.0,147.97,147.91,2.5015]
[1718308950901,2.5006,147.96,147.91,2.5015]
[1718308951101,47.5006,147.97,147.91,2.5015]
[1718308951708,2.5006,147.96,147.91,2.5015]
[1718308951907,2.5008,147.95,147.9,2.5016]
[1718308952129,2.5008,147.95,147.89,17.8165]
[1718308952398,2.501,147.94,147.89,17.8165]
[1718308952722,47.5009,147.95,147.89,17.8165]
[1718308952903,2.501,147.94,147.89,17.8165]
[1718308953309,2.8407,147.96,147.9,2.5015]
[1718308954643,2.8407,147.96,147.89,15.3148]
[1718308954644,2.5009,147.95,147.89,15.3148]
[1718308954831,2.5009,147.95,147.9,2.5016]
[1718308955705,2.8407,147.96,147.9,2.5016]
[1718308956214,2.8407,147.96,147.91,2.5014]
[1718308956215,0.34,147.96,147.91,2.5014]
[1718308956828,7.68,147.94,147.91,2.5014]
[1718308962617,0.34,147.96,147.91,2.5014]
[1718308962821,7.68,147.94,147.91,2.5014]
[1718308963212,7.68,147.94,147.92,2.5013]
[1718308964117,10.1811,147.93,147.86,5.0046]
[1718308964440,0.34,147.94,147.86,5.0046]
[1718308964661,7.68,147.92,147.9,2.5016]
[1718308965148,7.68,147.92,147.89,2.5017]
[1718308965315,7.68,147.92,147.9,2.5016]
[1718308966277,2.8407,147.96,147.9,2.5016]
[1718308966436,0.17,147.95,147.91,2.5014]
[1718308966657,0.17,147.95,147.88,7.68]
[1718308966658,7.68,147.94,147.88,7.68]
[1718308966962,7.68,147.94,147.91,2.5014]
[1718308967865,7.68,147.94,147.9,2.5015]
[1718308968869,20.34,147.96,147.91,2.5014]
[1718308969035,52.68,147.95,147.91,2.5014]
[1718308970063,7.68,147.94,147.91,2.5014]
[1718308970272,7.68,147.94,147.9,2.5016]
[1718308970562,2.5002,147.99,147.93,2.5011]
[1718308970766,7.68,147.97,147.93,2.5011]
[1718308972462,7.68,147.97,147.92,2.5012]
[1718308972850,7.68,147.96,147.91,16.4406]
[1718308973066,7.68,147.95,147.91,16.4406]
[1718308973659,7.68,147.95,147.91,18.9421]
[1718308975057,7.68,147.96,147.91,18.9421]
[1718308975782,2.5004,147.98,147.92,2.5013]
[1718308975950,7.68,147.96,147.92,2.5013]
[1718308977573,8.02,147.97,147.92,2.5013]
[1718308977780,45.0,147.96,147.92,2.5013]
[1718308978975,45.0,147.96,147.93,2.5011]
[1718308979352,7.68,147.98,147.94,2.5009]
[1718308979669,7.68,147.98,147.92,5.0026]
[1718308979670,7.68,147.98,147.93,2.501]
[1718308981369,7.68,147.98,147.94,2.501]
[1718308981679,7.68,147.98,147.93,2.501]
[1718308982395,7.68,147.98,147.92,7.68]
[1718308982396,7.68,147.97,147.92,2.5012]
[1718308982582,10.1804,147.98,147.92,10.1812]
[1718308984293,7.68,147.97,147.91,18.942]
[1718308984598,52.68,147.96,147.91,16.4406]
[1718308984768,7.68,147.96,147.91,18.942]
[1718308984970,7.68,147.96,147.91,24.1206]
[1718308985181,7.68,147.96,147.91,26.622]
[1718308986885,7.68,147.96,147.9,6.2845]
[1718308987060,53.19,147.95,147.9,8.786]
[1718308987262,53.02,147.95,147.9,8.786]
[1718308987461,45.0,147.95,147.91,2.5015]
[1718308987962,45.0,147.96,147.91,2.5015]
[1718308988281,45.0,147.96,147.92,2.5012]
[1718308988582,45.34,147.97,147.92,2.5012]
[1718308988768,47.8405,147.97,147.91,10.1814]
[1718308990398,45.0,147.97,147.92,7.68]
[1718308990564,10.1802,147.99,147.93,2.5011]
[1718308990885,65.17,147.98,147.93,2.5011]
[1718308991089,67.6703,147.98,147.93,7.68]
[1718308991286,67.6703,147.98,147.93,10.1811]
[1718308991460,2.5,148.0,147.94,2.5009]
[1718308991785,15.39443782,148.03,147.95,7.68]
[1718308991786,4.999,148.03,147.95,7.68]
[1718308991987,10.1797,148.02,147.96,10.1806]
[1718308992201,2.4998,148.01,147.96,7.68]
[1718308992689,2.5001,148.0,147.95,7.68]
[1718308992882,2.5001,147.99,147.95,7.68]
[1718308993078,47.5001,148.0,147.95,7.68]
[1718308993784,2.5001,147.99,147.95,7.68]
[1718308994086,2.5001,147.99,147.94,7.68]
[1718308994493,55.18,148.0,147.94,10.1809]
[1718308994794,7.68,147.99,147.93,16.3726]
[1718308994995,2.5004,147.98,147.93,24.0526]
[1718308995372,2.5004,147.98,147.93,26.5537]
[1718308995594,7.68,147.97,147.93,16.3726]
[1718308995973,10.1806,147.97,147.93,16.3726]
[1718308996876,7.68,147.96,147.9,6.2845]
[1718308997079,55.5209,147.95,147.9,8.7861]
[1718308997285,55.5209,147.95,147.9,6.2845]
[1718308997486,52.68,147.95,147.9,6.2845]
[1718308997684,45.0,147.95,147.9,16.4661]
[1718308997916,45.0,147.95,147.9,8.7861]
[1718308998204,45.0,147.95,147.91,2.5014]
[1718308998589,45.0,147.95,147.91,2.5015]
[1718308998785,45.0,147.95,147.9,13.9645]
[1718308998993,45.0,147.95,147.9,16.466]
[1718308999210,45.0,147.95,147.91,2.5015]
[1718309002203,7.85,147.96,147.92,2.5013]
[1718309002403,7.68,147.97,147.92,2.5013]
[1718309002585,45.0,147.96,147.92,2.5013]
[1718309004207,45.0,147.96,147.91,10.1814]
[1718309005092,10.5209,147.95,147.89,18.6734]
[1718309005404,45.0,147.94,147.89,26.3534]
[1718309005591,45.0,147.94,147.9,7.68]
[1718309005788,47.8409,147.95,147.9,7.68]
[1718309006820,45.34,147.95,147.9,10.1816]
[1718309008620,47.8408,147.95,147.9,2.5016]
[1718309008803,45.34,147.95,147.9,10.1816]
[1718309011244,45.34,147.95,147.86,6.3194]
[1718309011245,45.34,147.95,147.86,29.4751]
[1718309011527,55.351,147.94,147.88,10.1819]
[1718309011746,0.17,147.93,147.89,2.5018]
[1718309015935,120.3,147.91,147.81,22.1821]
[1718309016115,7.68,147.85,147.81,24.6852]
[1718309016319,7.68,147.85,147.81,22.1821]
[1718309016512,7.68,147.85,147.81,18.5259]
[1718309018117,7.68,147.85,147.82,2.503]
[1718309018316,7.68,147.86,147.82,2.503]
[1718309018610,45.0,147.85,147.82,2.503]
[1718309019015,45.0,147.85,147.81,18.5259]
[1718309019827,52.68,147.85,147.81,18.5259]
[1718309020029,7.68,147.84,147.81,18.5259]
[1718309020943,7.68,147.84,147.81,16.0228]
[1718309021237,7.68,147.84,147.81,18.5259]
[1718309021422,7.68,147.84,147.81,2.5031]
[1718309024023,7.68,147.83,147.81,2.5031]
[1718309026616,7.68,147.83,147.82,2.503]
[1718309026820,7.68,147.87,147.84,2.5025]
[1718309027414,20.0,147.9,147.83,12.514]
[1718309027621,20.0,147.91,147.86,2.5022]
[1718309027851,7.68,147.88,147.86,2.5022]
[1718309028328,7.68,147.88,147.85,2.5024]
[1718309028524,7.68,147.88,147.86,2.5023]
[1718309028947,7.68,147.88,147.85,2.5024]
[1718309029125,15.3596,147.93,147.85,5.0049]
[1718309029335,17.8608,147.93,147.87,2.502]
[1718309029563,2.501,147.94,147.88,2.5019]
[1718309030047,7.68,147.92,147.88,2.5019]
[1718309030234,2.501,147.94,147.88,2.5019]
[1718309030420,7.68,147.92,147.88,2.5019]
[1718309031246,7.68,147.96,147.91,2.5015]
[1718309031444,2.5005,147.97,147.91,2.5015]
[1718309031661,7.68,147.96,147.91,2.5015]
[1718309031965,2.5002,147.99,147.93,2.5011]
[1718309032258,2.5002,147.99,147.94,2.5009]
[1718309032259,7.68,147.99,147.94,2.5009]
[1718309032552,7.68,147.98,147.94,2.501]
[1718309035064,2.5,148.0,147.94,2.501]
[1718309035065,7.68,147.99,147.94,2.501]
[1718309035566,7.68,147.99,147.94,22.501]
[1718309035769,7.68,147.99,147.94,2.501]
[1718309035968,7.68,147.99,147.94,22.501]
[1718309036451,7.68,147.99,147.95,2.5008]